fUST/lending_fUST_20250830
["ID","MTS","AMOUNT","RATE_DAILY","PERIOD"]
[382171814,1756531833311,-500.0,0.00024034,2]
[382171815,1756531833321,-500.0,0.00024034,2]
[382171816,1756531833331,-343.71009424,0.00024034,2]
[382171817,1756531833344,-156.28990576,0.00024034,2]
[382171818,1756531833358,-500.0,0.00024034,2]
[382171819,1756531833367,-500.0,0.00024034,2]
[382171820,1756531833377,-375.16008481,0.00024034,2]
[382171849,1756531838632,-380.1380938,0.00024025,10]
[382171852,1756531838644,-423.79166931,0.00024025,10]
[382171863,1756531838746,-107.31023689,0.00024025,10]
[382171865,1756531838756,-124.83991519,0.00024034,2]
[382171867,1756531838765,-500.0,0.00024034,2]
[382171869,1756531838774,-500.0,0.00024034,2]
[382171871,1756531838784,-500.0,0.00024034,2]
[382171873,1756531838794,-500.0,0.00024034,2]
[382171875,1756531838803,-500.0,0.00024034,2]
[382171877,1756531838812,-500.0,0.00024034,2]
[382171879,1756531838821,-500.0,0.00024034,2]
[382171881,1756531838831,-500.0,0.00024034,2]
[382171883,1756531838840,-500.0,0.00024034,2]
[382171885,1756531838849,-500.0,0.00024034,2]
[382171887,1756531838863,-500.0,0.00024034,2]
[382171889,1756531838873,-500.0,0.00024034,2]
[382171891,1756531838882,-500.0,0.00024034,2]
[382171893,1756531838891,-462.94553639,0.00024034,2]
[382171895,1756531838900,-500.0,0.00024034,2]
[382171897,1756531838910,-500.0,0.00024034,2]
[382171899,1756531838919,-500.0,0.00024034,2]
[382171901,1756531838928,-500.0,0.00024034,2]
[382171903,1756531838937,-500.0,0.00024034,2]
[382171905,1756531838947,-500.0,0.00024034,2]
[382171907,1756531838956,-500.0,0.00024034,2]
[382171909,1756531838965,-500.0,0.00024034,2]
[382171911,1756531838975,-500.0,0.00024034,2]
[382171913,1756531838984,-500.0,0.00024034,2]
[382171915,1756531838994,-500.0,0.00024034,2]
[382171917,1756531839003,-500.0,0.00024034,2]
[382171919,1756531839012,-450.0,0.00024034,2]
[382171921,1756531839022,-500.0,0.00024034,2]
[382171923,1756531839031,-500.0,0.00024034,2]
[382171925,1756531839040,-500.0,0.00024034,2]
[382171927,1756531839049,-500.0,0.00024034,2]
[382171929,1756531839059,-500.0,0.00024034,2]
[382171931,1756531839068,-500.0,0.00024034,2]
[382171933,1756531839077,-500.0,0.00024034,2]
[382171935,1756531839086,-500.0,0.00024034,2]
[382171937,1756531839095,-500.0,0.00024034,2]
[382171939,1756531839106,-500.0,0.00024034,2]
[382171941,1756531839115,-500.0,0.00024034,2]
[382171943,1756531839123,-500.0,0.00024034,2]
[382171945,1756531839133,-500.0,0.00024034,2]
[382171947,1756531839142,-500.0,0.00024034,2]
[382171949,1756531839151,-500.0,0.00024034,2]
[382171951,1756531839160,-500.0,0.00024034,2]
[382171953,1756531839169,-650.0,0.00024034,2]
[382171955,1756531839179,-31963.6128294,0.00024035,2]
[382171957,1756531839189,-113135.25441106,0.00024035,2]
[382171959,1756531839198,-480.0,0.00024097,15]
[382171961,1756531839207,-48025.73,0.000241,7]
[382171963,1756531839217,-5708.74,0.000241,7]
[382171965,1756531839227,-160.0,0.000241,7]
[382171967,1756531839236,-417.15472785,0.000241,7]
[382171969,1756531839245,-4647.97485691,0.00024223,2]
[382171971,1756531839255,-549.61782895,0.00024425,2]
[382171973,1756531839264,-500.0,0.00024425,2]
[382171975,1756531839274,-4647.97485691,0.0002445,2]
[382171977,1756531839283,-500.0,0.00024458,2]
[382171979,1756531839292,-168.0,0.00024615,2]
[382171981,1756531839301,-168.0,0.00024638,2]
[382171983,1756531839311,-134653.25577078,0.00024648,2]
[382171984,1756531839321,-1000.0,0.0002467,2]
[382171986,1756531839331,-1000.0,0.0002467,2]
[382171988,1756531839340,-1000.0,0.0002467,2]
[382171990,1756531839349,-1000.0,0.0002467,2]
[382171992,1756531839359,-1000.0,0.0002467,2]
[382171994,1756531839368,-1000.0,0.0002467,2]
[382171996,1756531839377,-1000.0,0.0002467,2]
[382171998,1756531839386,-1000.0,0.0002467,2]
[382172000,1756531839396,-752.19282963,0.0002467,2]
[382172002,1756531839405,-151.0,0.0002467,2]
[382172004,1756531839414,-151.0,0.0002467,2]
[382172006,1756531839423,-151.0,0.0002467,2]
[382172008,1756531839432,-151.0,0.0002467,2]
[382172010,1756531839442,-151.0,0.0002467,2]
[382172012,1756531839451,-500.0,0.0002467,2]
[382172014,1756531839460,-151.0,0.0002467,2]
[382172016,1756531839469,-500.0,0.0002467,2]
[382172018,1756531839479,-151.0,0.0002467,2]
[382172020,1756531839488,-500.0,0.0002467,2]
[382172022,1756531839499,-151.0,0.0002467,2]
[382172024,1756531839508,-500.0,0.0002467,2]
[382172026,1756531839517,-151.0,0.0002467,2]
[382172028,1756531839527,-500.0,0.0002467,2]
[382172030,1756531839536,-151.0,0.0002467,2]
[382172032,1756531839545,-500.0,0.0002467,2]
[382172034,1756531839556,-151.0,0.0002467,2]
[382172036,1756531839566,-151.0,0.0002467,2]
[382172038,1756531839576,-500.0,0.0002467,2]
[382172039,1756531839586,-151.0,0.0002467,2]
[382172042,1756531839595,-151.0,0.0002467,2]
[382172043,1756531839607,-155.93028656,0.0002467,2]
[382172045,1756531839619,-500.0,0.0002467,2]
[382172048,1756531839629,-151.0,0.0002467,2]
[382172049,1756531839638,-500.0,0.0002467,2]
[382172051,1756531839648,-151.0,0.0002467,2]
[382172053,1756531839657,-500.0,0.0002467,2]
[382172056,1756531839667,-151.0,0.0002467,2]
[382172057,1756531839676,-500.0,0.0002467,2]
[382172060,1756531839686,-151.0,0.0002467,2]
[382172061,1756531839695,-500.0,0.0002467,2]
[382172063,1756531839704,-151.0,0.0002467,2]
[382172065,1756531839713,-151.0,0.0002467,2]
[382172067,1756531839723,-500.0,0.0002467,2]
[382172069,1756531839732,-151.0,0.0002467,2]
[382172071,1756531839742,-2492.71625395,0.0002467,2]
[382172073,1756531839751,-500.0,0.0002467,2]
[382172075,1756531839760,-151.0,0.0002467,2]
[382172077,1756531839769,-151.0,0.0002467,2]
[382172079,1756531839779,-151.0,0.0002467,2]
[382172081,1756531839788,-153.21929658,0.0002467,2]
[382172083,1756531839798,-4647.97485691,0.00024676,2]
[382172085,1756531839807,-160.0,0.00024691,2]
[382172087,1756531839816,-11361.55901651,0.00024701,2]
[382172089,1756531839825,-217.34977173,0.00024901,2]
[382172091,1756531839834,-4647.97485691,0.00024902,2]
[382172093,1756531839843,-500.0,0.00024973,2]
[382172095,1756531839853,-500.0,0.00024973,2]
[382172097,1756531839863,-5139.9399385,0.00025,7]
[382172098,1756531839871,-45058.68270236,0.00025,14]
[382172100,1756531839881,-2155.73660207,0.00025003,2]
[382172102,1756531839890,-232.73020027,0.00025014,2]
[382172104,1756531839899,-845.75060209,0.00025014,2]
[382172106,1756531839908,-342.73267993,0.00025027,2]
[382172108,1756531839917,-806.48707584,0.00025027,2]
[382172110,1756531839927,-160.0,0.0002505,2]
[382172112,1756531839935,-168.0,0.00025128,2]
[382172114,1756531839945,-168.0,0.00025159,2]
[382172116,1756531839954,-168.0,0.00025263,2]
[382172118,1756531839963,-881.14,0.00025395,3]
[382172120,1756531839972,-440.58,0.00025395,3]
[382172122,1756531839981,-440.58,0.00025395,3]
[382172124,1756531839991,-404.94,0.00025395,3]
[382172126,1756531840000,-500.0,0.00025521,2]
[382172127,1756531840009,-156.811,0.00025531,10]
[382172129,1756531840018,-409.0,0.00025571,2]
[382172131,1756531840028,-267.8177275,0.00025598,2]
[382172133,1756531840037,-168.0,0.00025674,2]
[382172135,1756531840047,-168.0,0.00025714,2]
[382172137,1756531840056,-168.0,0.00025797,2]
[382172139,1756531840066,-38909.91027796,0.00026,10]
[382172141,1756531840076,-1661.20345943,0.00026,30]
[382172143,1756531840086,-417.15472785,0.00026,10]
[382172145,1756531840096,-2155.73660207,0.00026008,2]
[382172147,1756531840105,-4000.0,0.00026028,2]
[382172149,1756531840115,-168.0,0.00026031,2]
[382172151,1756531840124,-153.0,0.00026266,2]
[382172153,1756531840134,-153.0,0.00026266,2]
[382172155,1756531840143,-153.0,0.00026266,2]
[382172157,1756531840152,-153.0,0.00026266,2]
[382172159,1756531840161,-168.0,0.00026359,2]
[382172161,1756531840171,-168.0,0.00026445,2]
[382172163,1756531840180,-168.0,0.000265,2]
[382172165,1756531840190,-222.020155,0.00026676,2]
[382172168,1756531840199,-1300.0,0.00026712,2]
[382172170,1756531840208,-1369.55978899,0.00026954,2]
[382172172,1756531840218,-3222.72235507,0.00026954,2]
[382172174,1756531840227,-3000.0,0.00026998,2]
[382172176,1756531840237,-5708.74,0.00027,7]
[382172178,1756531840247,-1009.25923327,0.00027,2]
[382172181,1756531840257,-2155.73660207,0.00027014,2]
[382172184,1756531840266,-1000.0,0.000271,2]
[382172187,1756531840276,-4475.81765876,0.00027517,2]
[382172191,1756531840286,-7132.0460495,0.00027764,2]
[382172193,1756531840295,-1300.0,0.00027808,7]
[382172196,1756531840305,-250.0,0.00027952,2]
[382172198,1756531840314,-2001.62977707,0.0002798,2]
[382172200,1756531840323,-2155.73660207,0.00028019,2]
[382172201,1756531840332,-5000.0,0.0002808,3]
[382172203,1756531840344,-5385.95,0.000281,7]
[382172205,1756531840355,-156.61,0.00028387,15]
[382172208,1756531840365,-293.08864168,0.00028473,5]
[382172210,1756531840375,-156.61,0.00028487,15]
[382172212,1756531840384,-48025.73,0.000285,7]
[382172214,1756531840393,-151.0,0.000285,7]
[382172216,1756531840403,-284.624,0.00028571,2]
[382172217,1756531840414,-156.61,0.00028587,15]
[382172219,1756531840423,-1591.3745772,0.00028596,2]
[382172221,1756531840433,-1300.0,0.0002863,7]
[382172224,1756531840443,-156.61,0.00028687,15]
[382172226,1756531840452,-152.13807225,0.00028783,2]
[382172228,1756531840462,-151.0,0.00028783,2]
[382172230,1756531840471,-152.02166784,0.00028783,2]
[382172231,1756531840480,-151.0,0.00028783,2]
[382172233,1756531840490,-151.48684361,0.00028783,2]
[382172235,1756531840499,-241.85192776,0.00028783,2]
[382172237,1756531840509,-151.37198271,0.00028783,2]
[382172240,1756531840518,-151.77123579,0.00028783,2]
[382172262,1756531840527,-154.25006985,0.00028783,2]
[382172264,1756531840730,-151.0,0.00028783,2]
[382172266,1756531840740,-179.74479563,0.00028783,2]
[382172268,1756531840750,-157.30439683,0.00028783,2]
[382172270,1756531840759,-156.61,0.00028787,15]
[382172272,1756531840769,-156.6266861,0.00028887,15]
[382172274,1756531840779,-3000.0,0.000289,3]
[382172276,1756531840789,-845.75060209,0.000289,3]
[382172278,1756531840799,-160.0,0.000289,3]
[382172279,1756531840808,-417.15472785,0.000289,3]
[382172280,1756531840817,-2155.73660207,0.00029025,2]
[382172281,1756531840827,-151.0,0.00029057,2]
[382172282,1756531840836,-500.0,0.00029114,2]
[382172283,1756531840845,-4000.0,0.000292,3]
[382172284,1756531840856,-198.0,0.00029331,2]
[382172285,1756531840865,-1300.0,0.00029452,7]
[382172286,1756531840874,-1225.72999923,0.000295,30]
[382172287,1756531840883,-501.94062629,0.000295,5]
[382172288,1756531840892,-713.495505,0.00029589,120]
[382172289,1756531840902,-576.18496891,0.00029693,2]
[382172290,1756531840911,-399.4944076,0.00029872,2]
[382172291,1756531840921,-5708.74,0.000299,7]
[382172292,1756531840930,-13614.88099494,0.0003,4]
[382172293,1756531840940,-1000.0,0.0003,60]
[382172295,1756531840949,-1503.393798,0.0003,2]
[382172296,1756531840959,-151.0,0.0003003,7]
[382172297,1756531840968,-151.0,0.0003003,7]
[382172298,1756531840977,-2155.73660207,0.0003003,2]
[382172299,1756531840986,-153.79444517,0.00030069,15]
[382172300,1756531840995,-238.40343822,0.00030101,30]
[382172301,1756531841003,-2000.0,0.00030136,30]
[382172302,1756531841012,-2000.0,0.00030136,30]
[382172303,1756531841021,-2000.0,0.00030136,30]
[382172305,1756531841030,-2000.0,0.00030136,30]
[382172307,1756531841040,-2000.0,0.00030136,30]
[382172309,1756531841049,-2000.0,0.00030136,30]
[382172311,1756531841058,-2000.0,0.00030136,30]
[382172313,1756531841067,-2000.0,0.00030136,30]
[382172315,1756531841076,-2000.0,0.00030136,30]
[382172317,1756531841086,-2000.0,0.00030136,30]
[382172319,1756531841096,-2000.0,0.00030136,30]
[382172321,1756531841105,-2000.0,0.00030136,30]
[382172323,1756531841115,-2000.0,0.00030136,30]
[382172325,1756531841124,-2000.0,0.00030136,30]
[382172327,1756531841133,-2000.0,0.00030136,30]
[382172329,1756531841143,-2000.0,0.00030136,30]
[382172331,1756531841152,-2000.0,0.00030136,30]
[382172332,1756531841161,-2000.0,0.00030136,30]
[382172334,1756531841171,-2061.57681629,0.00030136,30]
[382172336,1756531841180,-500.0,0.000302,5]
[382172338,1756531841189,-1300.0,0.00030274,7]
[382172341,1756531841199,-500.0,0.00030344,7]
[382172342,1756531841208,-5385.95,0.000305,7]
[382172344,1756531841218,-600.0,0.00030738,20]
[382172347,1756531841228,-1008.01724464,0.00030792,60]
[382172348,1756531841237,-48025.73,0.000309,7]
[382172350,1756531841248,-356.751259,0.00030973,5]
[382172352,1756531841257,-1535.93,0.00031,30]
[382172354,1756531841268,-83864.21138682,0.00031,7]
[382172390,1756531841606,10000.01,0.00023932,2]
[382172394,1756531841640,359999.99,0.00023932,2]
[382172397,1756531841657,-1311.042811,0.00031,7]
[382172400,1756531841673,-84907.9496358,0.00031,7]
[382172404,1756531841712,253.74856936,0.000199,2]
[382172410,1756531841760,253.74856936,0.00022985,2]
[382172573,1756531843705,-253.74856936,0.0002607,4]
[382172576,1756531843715,-253.74856936,0.00029155,11]
[382172578,1756531843724,-186344.73870508,0.00031,7]
[382172581,1756531843734,-156.0,0.00031,120]
[382172584,1756531843744,-162.10925486,0.00031,60]
[382172587,1756531843753,-2837.29549185,0.00031,120]
[382172589,1756531843762,-197.0513,0.00031,120]
[382172591,1756531843772,-653.0,0.00031,120]
[382172593,1756531843781,-151.0,0.00031,7]
[382172595,1756531843791,-151.0,0.00031,7]
[382172597,1756531843800,-151.0,0.00031,7]
[382172599,1756531843809,-151.0,0.00031,7]
[382172601,1756531843818,-151.0,0.00031,7]
[382172603,1756531843827,-151.0,0.00031,7]
[382172605,1756531843837,-151.0,0.00031,7]
[382172607,1756531843846,-207.637334,0.00031,7]
[382172609,1756531843855,-151.0,0.00031,7]
[382172611,1756531843864,-238.42809,0.00031,7]
[382172613,1756531843874,-151.0,0.00031,7]
[382172615,1756531843883,-151.0,0.00031,7]
[382172617,1756531843892,-202.118102,0.00031,7]
[382172619,1756531843902,-151.0,0.00031,7]
[382172621,1756531843911,-275.746057,0.00031,7]
[382172623,1756531843921,-2471.05879602,0.00031015,60]
[382172626,1756531843949,-7528.94120398,0.00031015,60]
[382172628,1756531843958,-2250.0,0.00031016,60]
[382172630,1756531843967,-500.0,0.0003102,5]
[382172632,1756531843977,-500.0,0.0003103,15]
[382172634,1756531843990,-500.0,0.0003103,2]
[382172636,1756531843999,-500.0,0.0003103,2]
[382172638,1756531844009,-500.0,0.0003103,7]
[382172640,1756531844019,-500.0,0.0003103,30]
[382172642,1756531844028,-500.0,0.0003103,30]
[382172644,1756531844046,-500.0,0.0003103,30]
[382172646,1756531844055,-96.48488413,0.0003103,2]
[382172648,1756531844067,-403.51511587,0.0003103,2]
[382172650,1756531844081,-500.0,0.0003103,10]
[382172652,1756531844096,-500.0,0.0003103,7]
[382172654,1756531844106,-500.0,0.0003103,7]
[382172656,1756531844115,-500.0,0.0003103,7]
[382172658,1756531844125,-500.0,0.0003103,10]
[382172660,1756531844135,-5531.08139191,0.00031035,2]
[382172934,1756531846868,-1000.0,0.00024001,2]
[382172937,1756531846878,-199.0,0.00029489,120]
[382172939,1756531846887,-2760.57547014,0.00031035,2]
[382172941,1756531846897,-4475.81765876,0.00031036,2]
[382172943,1756531846906,-2155.73660207,0.00031036,2]
[382172945,1756531846915,-1169.99328853,0.00031096,7]
[382174342,1756531861051,199.6988805,0.00023934,2]
[382174805,1756531966529,5000.0,0.00024001,2]
[382174806,1756531978544,168.0,0.00023686,2]
[382174807,1756531989806,5000.0,0.00024001,2]
[382174808,1756532003635,354232.37689269,0.00023935,2]
[382174809,1756532003669,15767.62310731,0.00023935,2]
[382174810,1756532010080,169.33814378,0.00023933,2]
[382174811,1756532013376,190.23027173,0.00023312,2]
[382174812,1756532013433,5000.0,0.00024001,2]
[382174815,1756532021438,372.1645684,0.000199,2]
[382174816,1756532035992,5000.0,0.00024001,2]
[382174817,1756532054065,1616.80245157,0.00023933,2]
[382174818,1756532059210,5000.0,0.00024001,2]
[382174819,1756532083263,5000.0,0.00024001,2]
[382174820,1756532107174,2580.17589924,0.00024001,2]
[382174821,1756532165873,370000.0,0.00023933,2]
[382174822,1756532184460,2156.0,0.00022,2]
[382174823,1756532191878,168.0,0.00023796,2]
[382174824,1756532194692,168.0,0.00023662,2]
[382174825,1756532200597,168.0,0.00023747,2]
[382174826,1756532202351,185.176569,0.00023405,2]
[382174827,1756532207382,388.608356,0.000199,2]
[382174828,1756532280013,1414.70214515,0.00023931,2]
[382174829,1756532307669,84655.17848782,0.00023933,2]
[382174830,1756532361232,-650.69,0.00023922,10]
[382174831,1756532361263,-759.37,0.00023923,10]
[382174832,1756532361292,-300.0,0.00023931,2]
[382174833,1756532361321,-500.0,0.00023932,2]
[382174834,1756532362280,542.25,0.00023922,10]
[382174835,1756532369262,884.557835,0.0002343,2]
[382174836,1756532376583,451.87,0.00023922,10]
[382174837,1756532388354,500.0,0.00023932,2]
[382174838,1756532396583,362.16158032,0.000199,2]
[382174839,1756532402388,300.0,0.00023931,2]
[382174840,1756532402812,300.0,0.00023931,2]
[382174841,1756532403678,1200.0,0.00023931,2]
[382174843,1756532406204,376.56,0.00023922,10]
[382174844,1756532432492,574.94343693,0.00023931,2]
[382174845,1756532432524,87.54714775,0.00023931,2]
[382174846,1756532432549,412.45285225,0.00023931,2]
[382174847,1756532432580,198.6038374,0.00023931,2]
[382174848,1756532432615,500.0,0.00023931,2]
[382174849,1756532432648,500.0,0.00023931,2]
[382174850,1756532432686,500.0,0.00023931,2]
[382174851,1756532432721,500.0,0.00023931,2]
[382174852,1756532432754,474.75602551,0.00023931,2]
[382174853,1756532432787,500.0,0.00023931,2]
[382174854,1756532432817,500.0,0.00023931,2]
[382174855,1756532432853,500.0,0.00023931,2]
[382174856,1756532432895,500.0,0.00023931,2]
[382174857,1756532432925,500.0,0.00023931,2]
[382174858,1756532432963,500.0,0.00023931,2]
[382174859,1756532433001,500.0,0.00023931,2]
[382174860,1756532433038,500.0,0.00023931,2]
[382174861,1756532433070,500.0,0.00023931,2]
[382174862,1756532433108,500.0,0.00023931,2]
[382174863,1756532433146,500.0,0.00023931,2]
[382174864,1756532433182,500.0,0.00023931,2]
[382174865,1756532433224,500.0,0.00023931,2]
[382174866,1756532433262,414.19728484,0.00023931,2]
[382174867,1756532433291,85.80271516,0.00023931,2]
[382174868,1756532433324,500.0,0.00023931,2]
[382174869,1756532433359,500.0,0.00023931,2]
[382174870,1756532433395,500.0,0.00023931,2]
[382174871,1756532433446,500.0,0.00023931,2]
[382174872,1756532433508,500.0,0.00023931,2]
[382174873,1756532433542,500.0,0.00023931,2]
[382174874,1756532433577,500.0,0.00023931,2]
[382174875,1756532433622,500.0,0.00023931,2]
[382174876,1756532433664,500.0,0.00023931,2]
[382174877,1756532433695,500.0,0.00023931,2]
[382174878,1756532433728,500.0,0.00023931,2]
[382174879,1756532433761,500.0,0.00023931,2]
[382174880,1756532433800,500.0,0.00023931,2]
[382174881,1756532433831,500.0,0.00023931,2]
[382174882,1756532433866,500.0,0.00023931,2]
[382174883,1756532433908,500.0,0.00023931,2]
[382174884,1756532433945,500.0,0.00023931,2]
[382174885,1756532433978,500.0,0.00023931,2]
[382174886,1756532434011,500.0,0.00023931,2]
[382174887,1756532434043,414.20728484,0.00023931,2]
[382174888,1756532434070,85.79271516,0.00023931,2]
[382174889,1756532434105,500.0,0.00023931,2]
[382174890,1756532434144,500.0,0.00023931,2]
[382174891,1756532434176,500.0,0.00023931,2]
[382174892,1756532434207,500.0,0.00023931,2]
[382174893,1756532434241,500.0,0.00023931,2]
[382174894,1756532434281,500.0,0.00023931,2]
[382174895,1756532434314,500.0,0.00023931,2]
[382174896,1756532434346,500.0,0.00023931,2]
[382174897,1756532434380,500.0,0.00023931,2]
[382174898,1756532434414,500.0,0.00023931,2]
[382174899,1756532434447,500.0,0.00023931,2]
[382174900,1756532434481,500.0,0.00023931,2]
[382174901,1756532434515,500.0,0.00023931,2]
[382174902,1756532434553,500.0,0.00023931,2]
[382174903,1756532434590,500.0,0.00023931,2]
[382174904,1756532434621,500.0,0.00023931,2]
[382174905,1756532434656,500.0,0.00023931,2]
[382174906,1756532434688,500.0,0.00023931,2]
[382174907,1756532434721,500.0,0.00023931,2]
[382174908,1756532434759,414.21728484,0.00023931,2]
[382174909,1756532434788,85.78271516,0.00023931,2]
[382174910,1756532434826,500.0,0.00023931,2]
[382174911,1756532434857,500.0,0.00023931,2]
[382174912,1756532434897,500.0,0.00023931,2]
[382174913,1756532434933,500.0,0.00023931,2]
[382174914,1756532434971,645.46254351,0.00023931,2]
[382174915,1756532435004,500.0,0.00023931,2]
[382174916,1756532435036,500.0,0.00023931,2]
[382174917,1756532435072,500.0,0.00023931,2]
[382174918,1756532435105,500.0,0.00023931,2]
[382174919,1756532435144,500.0,0.00023931,2]
[382174920,1756532435407,500.0,0.00023931,2]
[382174921,1756532435461,187.72647888,0.00023931,2]
[382174922,1756532435533,500.0,0.00023931,2]
[382174923,1756532435568,500.0,0.00023931,2]
[382174924,1756532435604,500.0,0.00023931,2]
[382174925,1756532435651,500.0,0.00023931,2]
[382174926,1756532435684,500.0,0.00023931,2]
[382174927,1756532435718,500.0,0.00023931,2]
[382174928,1756532435752,500.0,0.00023931,2]
[382174929,1756532435791,500.0,0.00023931,2]
[382174930,1756532435833,81.03826245,0.00023931,2]
[382174931,1756532435866,418.96173755,0.00023931,2]
[382174932,1756532435933,500.0,0.00023931,2]
[382174933,1756532435990,500.0,0.00023931,2]
[382174934,1756532436023,500.0,0.00023931,2]
[382174935,1756532436061,500.0,0.00023931,2]
[382174936,1756532436094,500.0,0.00023931,2]
[382174937,1756532436279,313.8,0.00023923,10]
[382174938,1756532441320,-500.0,0.00023932,2]
[382174939,1756532441352,-452.5242738,0.00023932,2]
[382174940,1756532443622,500.0,0.00023931,2]
[382174941,1756532443679,500.0,0.00023931,2]
[382174942,1756532443732,554.28769029,0.00023931,2]
[382174943,1756532443787,500.0,0.00023931,2]
[382174944,1756532446023,6040.67376211,0.00023931,2]
[382174945,1756532446048,10000.01,0.00023931,2]
[382174946,1756532446075,487.22307351,0.00023931,2]
[382174947,1756532448069,500.0,0.00023931,2]
[382174948,1756532448110,500.0,0.00023931,2]
[382174949,1756532448147,500.0,0.00023931,2]
[382174950,1756532448179,500.0,0.00023931,2]
[382174951,1756532448216,500.0,0.00023931,2]
[382174952,1756532448250,500.0,0.00023931,2]
[382174953,1756532448312,500.0,0.00023931,2]
[382174954,1756532448358,500.0,0.00023931,2]
[382174955,1756532448398,500.0,0.00023931,2]
[382174956,1756532448432,959.65476722,0.00023931,2]
[382174957,1756532448469,500.0,0.00023931,2]
[382174958,1756532448502,959.65476722,0.00023931,2]
[382174959,1756532448546,500.0,0.00023931,2]
[382174960,1756532448601,959.65476722,0.00023931,2]
[382174961,1756532448938,500.0,0.00023931,2]
[382174962,1756532448974,633.82262483,0.00023931,2]
[382174963,1756532449001,325.83214239,0.00023931,2]
[382174964,1756532449036,959.65476722,0.00023931,2]
[382174965,1756532449072,500.0,0.00023931,2]
[382174966,1756532449106,959.65476722,0.00023931,2]
[382174967,1756532449138,500.0,0.00023931,2]
[382174968,1756532449175,959.65476722,0.00023931,2]
[382174969,1756532449208,500.0,0.00023931,2]
[382174970,1756532449238,268.54,0.00023923,10]
[382174971,1756532449280,959.65476722,0.00023931,2]
[382174972,1756532449313,255.0,0.00023931,2]
[382174973,1756532449344,500.0,0.00023931,2]
[382174974,1756532449386,500.0,0.00023931,2]
[382174975,1756532449423,500.0,0.00023931,2]
[382174976,1756532449457,500.0,0.00023931,2]
[382174977,1756532449494,500.0,0.00023931,2]
[382174978,1756532449526,500.0,0.00023931,2]
[382174979,1756532449565,812.01878873,0.00023931,2]
[382174980,1756532449592,147.63597849,0.00023931,2]
[382174981,1756532449625,500.0,0.00023931,2]
[382174982,1756532449660,959.65476722,0.00023931,2]
[382174983,1756532449692,500.0,0.00023931,2]
[382174984,1756532449737,500.0,0.00023931,2]
[382174985,1756532449769,959.65476722,0.00023931,2]
[382174986,1756532449852,959.65476722,0.00023931,2]
[382174987,1756532449887,500.0,0.00023931,2]
[382174988,1756532449967,959.65476722,0.00023931,2]
[382174989,1756532450497,959.65476722,0.00023931,2]
[382174990,1756532450534,500.0,0.00023931,2]
[382174991,1756532450567,959.65476722,0.00023931,2]
[382174992,1756532450610,500.0,0.00023931,2]
[382174993,1756532450647,959.65476722,0.00023931,2]
[382174994,1756532450689,134.79065097,0.00023931,2]
[382174995,1756532450718,365.20934903,0.00023931,2]
[382174996,1756532450752,959.65476722,0.00023931,2]